[Event "Live Chess"]
[Site "Chess.com"]
[Date "2023.05.21"]
[Round "-"]
[White "educatedlad"]
[Black "chessfiction"]
[Result "0-1"]
[WhiteElo "1627"]
[BlackElo "2333"]
[TimeControl "300"]
[EndTime "17:09:32 PDT"]
[Termination "chessfiction won by resignation"]

1. e4 {[%clk 0:04:59.4]} 1... e5 {[%clk 0:04:57.4]} 2. Nf3 {[%clk 0:04:57]} 2...
d5 {[%clk 0:04:57.3]} 3. Nxe5 {[%clk 0:04:54.4]} 3... Bd6 {[%clk 0:04:55.9]} 4.
d4 {[%clk 0:04:51.7]} 4... dxe4 {[%clk 0:04:53.5]} 5. Nc3 {[%clk 0:04:50]} 5...
Nf6 {[%clk 0:04:52.4]} 6. Bg5 {[%clk 0:04:46.4]} 6... O-O {[%clk 0:04:51.2]} 7.
Nxe4 {[%clk 0:04:43.9]} 7... Bxe5 {[%clk 0:04:48.7]} 8. Nxf6+ {[%clk 0:04:39.6]}
8... Bxf6 {[%clk 0:04:47.4]} 9. Bxf6 {[%clk 0:04:35.6]} 9... Qxf6 {[%clk
0:04:47.3]} 10. c3 {[%clk 0:04:33.8]} 10... Nc6 {[%clk 0:04:46.7]} 11. Qc2
{[%clk 0:04:33.3]} 11... Bf5 {[%clk 0:04:45.8]} 12. Bd3 {[%clk 0:04:31.4]} 12...
Rfe8+ {[%clk 0:04:45.7]} 13. Kf1 {[%clk 0:04:28.3]} 13... Bxd3+ {[%clk
0:04:41.3]} 14. Qxd3 {[%clk 0:04:28.2]} 14... Re7 {[%clk 0:04:40.4]} 15. Re1
{[%clk 0:04:27]} 15... Rae8 {[%clk 0:04:38.1]} 16. Rxe7 {[%clk 0:04:26.2]} 16...
Qxe7 {[%clk 0:04:37.7]} 17. g3 {[%clk 0:04:24.9]} 17... Qe4 {[%clk 0:04:32.6]}
18. Qxe4 {[%clk 0:04:23.3]} 18... Rxe4 {[%clk 0:04:32.5]} 0-1

[Event "Live Chess"]
[Site "Chess.com"]
[Date "2023.05.21"]
[Round "-"]
[White "LutherSullivan"]
[Black "domrobson"]
[Result "1-0"]
[WhiteElo "2110"]
[BlackElo "1745"]
[TimeControl "300"]
[EndTime "17:09:39 PDT"]
[Termination "LutherSullivan won by resignation"]

1. d4 {[%clk 0:04:58]} 1... Nf6 {[%clk 0:04:58.8]} 2. Nc3 {[%clk 0:04:56.7]}
2... e6 {[%clk 0:04:58]} 3. e4 {[%clk 0:04:56.2]} 3... d5 {[%clk 0:04:56.5]} 4.
e5 {[%clk 0:04:54.2]} 4... Nfd7 {[%clk 0:04:56]} 5. f4 {[%clk 0:04:52.7]} 5...
c5 {[%clk 0:04:55]} 6. Nf3 {[%clk 0:04:52.4]} 6... Nc6 {[%clk 0:04:53.5]} 7. Be3
{[%clk 0:04:52]} 7... a6 {[%clk 0:04:50.6]} 8. Qd2 {[%clk 0:04:51.5]} 8... Qb6
{[%clk 0:04:49.4]} 9. dxc5 {[%clk 0:04:50]} 9... Bxc5 {[%clk 0:04:47.9]} 10.
Bxc5 {[%clk 0:04:48.3]} 10... Qxc5 {[%clk 0:04:46.8]} 11. Bd3 {[%clk 0:04:43.5]}
11... d4 {[%clk 0:04:42.2]} 12. Ne4 {[%clk 0:04:41.7]} 12... Qb6 {[%clk
0:04:40.5]} 13. Nd6+ {[%clk 0:04:40.1]} 13... Ke7 {[%clk 0:04:39.4]} 14. O-O-O
{[%clk 0:04:25.9]} 14... h6 {[%clk 0:04:30.8]} 15. g4 {[%clk 0:04:23.5]} 15...
f6 {[%clk 0:04:29.8]} 16. Nh4 {[%clk 0:04:19.9]} 16... fxe5 {[%clk 0:04:28]} 17.
Nc4 {[%clk 0:04:18.3]} 17... Qb4 {[%clk 0:04:20]} 18. Ng6+ {[%clk 0:04:16.4]}
18... Kf7 {[%clk 0:04:17.2]} 19. Nxh8+ {[%clk 0:04:14.9]} 19... Kg8 {[%clk
0:04:16.6]} 1-0

[Event "Live Chess"]
[Site "Chess.com"]
[Date "2023.05.21"]
[Round "-"]
[White "Shepherds_Pie"]
[Black "CeladonFish"]
[Result "1-0"]
[WhiteElo "1912"]
[BlackElo "1110"]
[TimeControl "300"]
[EndTime "17:10:01 PDT"]
[Termination "Shepherds_Pie won by checkmate"]

1. c4 {[%clk 0:04:55.4]} 1... Nf6 {[%clk 0:04:58.8]} 2. Nc3 {[%clk 0:04:54]}
2... g6 {[%clk 0:04:58.1]} 3. g3 {[%clk 0:04:52.7]} 3... Bg7 {[%clk 0:04:57.4]}
4. Bg2 {[%clk 0:04:52.6]} 4... O-O {[%clk 0:04:56.6]} 5. Nf3 {[%clk 0:04:51.5]}
5... d6 {[%clk 0:04:56]} 6. O-O {[%clk 0:04:50.3]} 6... Nc6 {[%clk 0:04:52.9]}
7. d3 {[%clk 0:04:48.6]} 7... Ne5 {[%clk 0:04:50.6]} 8. Rb1 {[%clk 0:04:44.2]}
8... Nxf3+ {[%clk 0:04:49.2]} 9. Bxf3 {[%clk 0:04:43.1]} 9... Bd7 {[%clk
0:04:48]} 10. b4 {[%clk 0:04:40.2]} 10... Rb8 {[%clk 0:04:43.3]} 11. b5 {[%clk
0:04:38.6]} 11... c6 {[%clk 0:04:36.1]} 12. a4 {[%clk 0:04:36.5]} 12... cxb5
{[%clk 0:04:33.2]} 13. axb5 {[%clk 0:04:35]} 13... a6 {[%clk 0:04:31.6]} 14. Qc2
{[%clk 0:04:27.1]} 14... axb5 {[%clk 0:04:27.1]} 15. Nxb5 {[%clk 0:04:24.4]}
15... Bxb5 {[%clk 0:04:23.7]} 16. Rxb5 {[%clk 0:04:22.5]} 16... Qc7 {[%clk
0:04:18.2]} 17. Be3 {[%clk 0:04:18.9]} 17... Nd7 {[%clk 0:04:13]} 18. Rfb1
{[%clk 0:04:14.9]} 18... Nc5 {[%clk 0:04:10.7]} 19. Bxc5 {[%clk 0:04:13.5]}
19... dxc5 {[%clk 0:04:09.7]} 20. Rxb7 {[%clk 0:04:12.2]} 20... Rxb7 {[%clk
0:04:08.7]} 21. Rxb7 {[%clk 0:04:10.5]} 21... Qd6 {[%clk 0:03:59.2]} 22. Kg2
{[%clk 0:04:05.5]} 22... Rb8 {[%clk 0:03:55.1]} 23. Qb3 {[%clk 0:04:02.4]} 23...
Rxb7 {[%clk 0:03:39]} 24. Qxb7 {[%clk 0:04:00.9]} 24... Bf6 {[%clk 0:03:32.8]}
25. h4 {[%clk 0:03:55.6]} 25... Kg7 {[%clk 0:03:31.2]} 26. Qe4 {[%clk
0:03:52.2]} 26... h6 {[%clk 0:03:29.9]} 27. h5 {[%clk 0:03:47.9]} 27... Qe5
{[%clk 0:03:23.2]} 28. hxg6 {[%clk 0:03:40.8]} 28... fxg6 {[%clk 0:03:20.2]} 29.
Qg4 {[%clk 0:03:31.7]} 29... Qg5 {[%clk 0:03:16.8]} 30. Qh3 {[%clk 0:03:28.5]}
30... Kf7 {[%clk 0:03:09.7]} 31. Bd5+ {[%clk 0:03:26.5]} 31... Kg7 {[%clk
0:03:07.8]} 32. Qe6 {[%clk 0:03:24.5]} 32... h5 {[%clk 0:03:02.5]} 33. Qf7+
{[%clk 0:03:12]} 33... Kh6 {[%clk 0:03:01.5]} 34. f4 {[%clk 0:02:37.5]} 34...
Qg4 {[%clk 0:02:48.7]} 35. Bf3 {[%clk 0:02:35.6]} 35... Qf5 {[%clk 0:02:44.5]}
36. e4 {[%clk 0:02:26.6]} 36... Qd7 {[%clk 0:02:40.5]} 37. Qd5 {[%clk
0:02:15.2]} 37... Qc7 {[%clk 0:02:25.9]} 38. e5 {[%clk 0:02:10.7]} 38... Bg7
{[%clk 0:02:22.1]} 39. Qe4 {[%clk 0:02:08.5]} 39... Qa5 {[%clk 0:02:19.3]} 40.
Kh3 {[%clk 0:01:59.8]} 40... Qb6 {[%clk 0:02:03]} 41. f5 {[%clk 0:01:56.6]}
41... gxf5 {[%clk 0:02:00.4]} 42. Qxf5 {[%clk 0:01:55.2]} 42... Qg6 {[%clk
0:01:58.5]} 43. Qf4+ {[%clk 0:01:47.2]} 43... Qg5 {[%clk 0:01:55.1]} 44. Be4
{[%clk 0:01:45.2]} 44... Qxf4 {[%clk 0:01:53.3]} 45. gxf4 {[%clk 0:01:43.9]}
45... e6 {[%clk 0:01:51.4]} 46. Kh4 {[%clk 0:01:39.5]} 46... Bh8 {[%clk
0:01:46.5]} 47. Bf3 {[%clk 0:01:38.1]} 47... Bg7 {[%clk 0:01:44.9]} 48. Bxh5
{[%clk 0:01:37]} 48... Bh8 {[%clk 0:01:41.9]} 49. Bf7 {[%clk 0:01:35.7]} 49...
Bg7 {[%clk 0:01:34.2]} 50. Bxe6 {[%clk 0:01:34.5]} 50... Bf8 {[%clk 0:01:31]}
51. Kg4 {[%clk 0:01:33.3]} 51... Be7 {[%clk 0:01:29.6]} 52. Kf5 {[%clk
0:01:32.2]} 52... Kg7 {[%clk 0:01:29]} 53. Bd5 {[%clk 0:01:30.9]} 53... Kf8
{[%clk 0:01:26]} 54. Ke4 {[%clk 0:01:29.9]} 54... Kg7 {[%clk 0:01:24.7]} 55. f5
{[%clk 0:01:28.8]} 55... Kh7 {[%clk 0:01:23]} 56. f6 {[%clk 0:01:27.5]} 56...
Bxf6 {[%clk 0:01:21.9]} 57. exf6 {[%clk 0:01:26.2]} 57... Kh8 {[%clk 0:01:19.6]}
58. Kf5 {[%clk 0:01:22.8]} 58... Kh7 {[%clk 0:01:18.2]} 59. Ke6 {[%clk
0:01:19.9]} 59... Kg8 {[%clk 0:01:16.5]} 60. Ke7+ {[%clk 0:01:17.1]} 60... Kh7
{[%clk 0:01:14.8]} 61. f7 {[%clk 0:01:15.7]} 61... Kg7 {[%clk 0:01:13.4]} 62.
f8=Q+ {[%clk 0:01:14.1]} 62... Kg6 {[%clk 0:01:12.8]} 63. Qf6+ {[%clk
0:01:11.5]} 63... Kh5 {[%clk 0:01:11.7]} 64. Bf3# {[%clk 0:01:07.3]} 1-0

[Event "Live Chess"]
[Site "Chess.com"]
[Date "2023.05.21"]
[Round "-"]
[White "LodeshChess"]
[Black "Hussamalhaidar"]
[Result "0-1"]
[WhiteElo "1119"]
[BlackElo "1070"]
[TimeControl "300"]
[EndTime "17:10:04 PDT"]
[Termination "Hussamalhaidar won by resignation"]

1. e4 {[%clk 0:04:59.6]} 1... Nc6 {[%clk 0:04:55]} 2. Nf3 {[%clk 0:04:55.6]}
2... e5 {[%clk 0:04:54]} 3. c3 {[%clk 0:04:53.7]} 3... Bc5 {[%clk 0:04:53.3]} 4.
d4 {[%clk 0:04:52.9]} 4... exd4 {[%clk 0:04:52.3]} 5. cxd4 {[%clk 0:04:52.5]}
5... Bb6 {[%clk 0:04:49.5]} 6. Bb5 {[%clk 0:04:49.6]} 6... d6 {[%clk 0:04:44.5]}
7. d5 {[%clk 0:04:42.9]} 7... a6 {[%clk 0:04:40.3]} 8. Ba4 {[%clk 0:04:41.6]}
8... Bd7 {[%clk 0:04:33.8]} 9. dxc6 {[%clk 0:04:40.2]} 9... bxc6 {[%clk
0:04:32.3]} 10. O-O {[%clk 0:04:37.7]} 10... Nf6 {[%clk 0:04:29.4]} 11. Nc3
{[%clk 0:04:36.2]} 11... O-O {[%clk 0:04:23.1]} 12. Bg5 {[%clk 0:04:32.3]} 12...
h6 {[%clk 0:04:21.4]} 13. Bxf6 {[%clk 0:04:30.9]} 13... Qxf6 {[%clk 0:04:19.6]}
14. Re1 {[%clk 0:04:14.9]} 14... Rae8 {[%clk 0:03:57.3]} 15. Qd2 {[%clk
0:03:23.6]} 15... g5 {[%clk 0:03:49.6]} 16. Nd5 {[%clk 0:03:20.5]} 16... cxd5
{[%clk 0:03:31]} 17. Bxd7 {[%clk 0:03:19.1]} 17... dxe4 {[%clk 0:03:27.1]} 18.
Bxe8 {[%clk 0:02:50.9]} 18... Rxe8 {[%clk 0:03:23.9]} 19. Qc3 {[%clk 0:02:34.9]}
19... Re5 {[%clk 0:02:51]} 20. Re2 {[%clk 0:02:07.5]} 20... exf3 {[%clk
0:02:45.7]} 21. Rxe5 {[%clk 0:02:06.1]} 21... dxe5 {[%clk 0:02:35.4]} 22. Qxf3
{[%clk 0:01:52.6]} 22... Qd6 {[%clk 0:02:22.8]} 23. Qa8+ {[%clk 0:01:45.2]}
23... Kg7 {[%clk 0:02:19.4]} 24. Qxa6 {[%clk 0:01:44.6]} 24... Bxf2+ {[%clk
0:02:16.1]} 25. Kxf2 {[%clk 0:01:37.8]} 25... Qxa6 {[%clk 0:02:14.6]} 0-1

[Event "Live Chess"]
[Site "Chess.com"]
[Date "2023.05.21"]
[Round "-"]
[White "toog"]
[Black "GEMdzq"]
[Result "0-1"]
[WhiteElo "2568"]
[BlackElo "2257"]
[TimeControl "300"]
[EndTime "17:10:42 PDT"]
[Termination "GEMdzq won by resignation"]

1. e4 {[%clk 0:04:53.6]} 1... d6 {[%clk 0:04:58.7]} 2. d4 {[%clk 0:04:50.9]}
2... Nf6 {[%clk 0:04:57.3]} 3. Nc3 {[%clk 0:04:50]} 3... g6 {[%clk 0:04:56.9]}
4. f4 {[%clk 0:04:48.5]} 4... Bg7 {[%clk 0:04:56.2]} 5. Nf3 {[%clk 0:04:47.8]}
5... O-O {[%clk 0:04:55.3]} 6. e5 {[%clk 0:04:46.9]} 6... Nfd7 {[%clk
0:04:49.5]} 7. Bc4 {[%clk 0:04:44.8]} 7... c5 {[%clk 0:04:43.8]} 8. e6 {[%clk
0:04:36.5]} 8... Nb6 {[%clk 0:04:42]} 9. exf7+ {[%clk 0:04:35.7]} 9... Kh8
{[%clk 0:04:40.9]} 10. Be2 {[%clk 0:04:32.6]} 10... cxd4 {[%clk 0:04:34.2]} 11.
Nxd4 {[%clk 0:04:31.4]} 11... e5 {[%clk 0:04:22.8]} 12. fxe5 {[%clk 0:04:24.5]}
12... dxe5 {[%clk 0:04:20.8]} 13. Nf3 {[%clk 0:04:21.8]} 13... Qxd1+ {[%clk
0:04:14.7]} 14. Bxd1 {[%clk 0:04:21.7]} 14... Rxf7 {[%clk 0:04:13.4]} 15. Ng5
{[%clk 0:04:20.2]} 15... Rf8 {[%clk 0:04:05.7]} 16. Bf3 {[%clk 0:04:16.8]} 16...
Nc6 {[%clk 0:04:01.5]} 17. O-O {[%clk 0:04:14.3]} 17... h6 {[%clk 0:03:52.5]}
18. Nge4 {[%clk 0:04:10.5]} 18... Nd4 {[%clk 0:03:45.1]} 19. Bd2 {[%clk
0:04:07.3]} 19... Nxc2 {[%clk 0:03:37.5]} 20. Rad1 {[%clk 0:04:04.5]} 20... Nd4
{[%clk 0:03:36.6]} 21. b3 {[%clk 0:03:57.1]} 21... Bf5 {[%clk 0:03:25]} 22. Nc5
{[%clk 0:03:46.2]} 22... Nxf3+ {[%clk 0:03:19.5]} 23. Rxf3 {[%clk 0:03:41.5]}
23... Rfc8 {[%clk 0:03:12]} 24. N3e4 {[%clk 0:03:29.9]} 24... Bg4 {[%clk
0:03:08.7]} 25. Rdf1 {[%clk 0:03:25.8]} 25... Bxf3 {[%clk 0:03:07.3]} 26. Rxf3
{[%clk 0:03:25.7]} 26... Rf8 {[%clk 0:03:01.9]} 27. Rd3 {[%clk 0:03:21.9]} 27...
Rad8 {[%clk 0:02:59]} 28. Rxd8 {[%clk 0:03:19.2]} 28... Rxd8 {[%clk 0:02:58.9]}
29. Nxb7 {[%clk 0:03:18.4]} 29... Rd4 {[%clk 0:02:51.2]} 30. Nbc5 {[%clk
0:03:17.1]} 30... Nd7 {[%clk 0:02:50.2]} 31. Nxd7 {[%clk 0:03:10.9]} 31... Rxe4
{[%clk 0:02:47.8]} 32. Bc3 {[%clk 0:03:04.4]} 32... Re2 {[%clk 0:02:41.4]} 33.
a4 {[%clk 0:02:59.1]} 33... e4 {[%clk 0:02:35.3]} 34. Bxg7+ {[%clk 0:02:57.1]}
34... Kxg7 {[%clk 0:02:35.2]} 35. Nc5 {[%clk 0:02:54.6]} 35... e3 {[%clk
0:02:26.1]} 36. b4 {[%clk 0:02:47.5]} 36... Rb2 {[%clk 0:02:15.8]} 37. Kf1
{[%clk 0:02:42.4]} 37... Rxb4 {[%clk 0:02:00.2]} 38. Ke2 {[%clk 0:02:40.5]}
38... Rc4 {[%clk 0:01:55.3]} 39. Nd3 {[%clk 0:02:36.8]} 39... Rxa4 {[%clk
0:01:51.9]} 40. Kxe3 {[%clk 0:02:36.3]} 40... Ra2 {[%clk 0:01:50.1]} 41. Nf2
{[%clk 0:02:35.3]} 41... a5 {[%clk 0:01:49]} 42. h4 {[%clk 0:02:34.3]} 42... a4
{[%clk 0:01:47.8]} 43. g4 {[%clk 0:02:33.5]} 43... a3 {[%clk 0:01:46.7]} 44. Nd3
{[%clk 0:02:31.5]} 44... Rh2 {[%clk 0:01:44.9]} 45. h5 {[%clk 0:02:29.9]} 45...
Rh3+ {[%clk 0:01:43.4]} 46. Kd4 {[%clk 0:02:28.4]} 46... a2 {[%clk 0:01:40.4]}
0-1

[Event "Live Chess"]
[Site "Chess.com"]
[Date "2023.05.21"]
[Round "-"]
[White "JohanKjeldahl"]
[Black "EdenHazard8"]
[Result "0-1"]
[WhiteElo "1863"]
[BlackElo "2006"]
[TimeControl "300"]
[EndTime "17:10:43 PDT"]
[Termination "EdenHazard8 won by resignation"]

1. c4 {[%clk 0:04:57.6]} 1... e5 {[%clk 0:04:58.9]} 2. Nc3 {[%clk 0:04:56.3]}
2... Nc6 {[%clk 0:04:58.8]} 3. e3 {[%clk 0:04:53.7]} 3... f5 {[%clk 0:04:57.8]}
4. Nge2 {[%clk 0:04:49.6]} 4... Nf6 {[%clk 0:04:57.1]} 5. d4 {[%clk 0:04:48.4]}
5... d6 {[%clk 0:04:55.8]} 6. g3 {[%clk 0:04:47.1]} 6... Be7 {[%clk 0:04:54.6]}
7. Bg2 {[%clk 0:04:46.2]} 7... O-O {[%clk 0:04:54.2]} 8. O-O {[%clk 0:04:45.1]}
8... Qe8 {[%clk 0:04:53.4]} 9. b3 {[%clk 0:04:43.9]} 9... Qh5 {[%clk 0:04:52.1]}
10. Bb2 {[%clk 0:04:40.6]} 10... f4 {[%clk 0:04:51.1]} 11. exf4 {[%clk
0:04:36.4]} 11... Bh3 {[%clk 0:04:48.1]} 12. fxe5 {[%clk 0:04:15]} 12... Ng4
{[%clk 0:04:33.4]} 13. Nf4 {[%clk 0:04:11.4]} 13... Rxf4 {[%clk 0:04:32.3]} 14.
gxf4 {[%clk 0:04:01.9]} 14... Bxg2 {[%clk 0:04:30.9]} 15. Kxg2 {[%clk
0:04:01.1]} 15... Qxh2+ {[%clk 0:04:29.4]} 16. Kf3 {[%clk 0:04:00.1]} 16... Qh3+
{[%clk 0:04:27.5]} 17. Ke2 {[%clk 0:03:50.1]} 17... dxe5 {[%clk 0:04:11.2]} 18.
dxe5 {[%clk 0:03:46.5]} 18... Rd8 {[%clk 0:04:08.3]} 19. Nd5 {[%clk 0:03:37.5]}
19... Bc5 {[%clk 0:03:49.5]} 20. Qd3 {[%clk 0:03:09.5]} 20... Qh5 {[%clk
0:03:46.6]} 21. Qf3 {[%clk 0:02:54.4]} 21... Qf5 {[%clk 0:03:44.2]} 22. Rad1
{[%clk 0:02:41.5]} 22... Nh2 {[%clk 0:03:26.8]} 23. Ne7+ {[%clk 0:02:32.7]}
23... Bxe7 {[%clk 0:03:19.2]} 24. Rxd8+ {[%clk 0:02:27]} 24... Nxd8 {[%clk
0:03:17]} 25. Qd5+ {[%clk 0:02:24.5]} 25... Kf8 {[%clk 0:03:11.8]} 26. Rd1
{[%clk 0:02:19.7]} 26... Ne6 {[%clk 0:03:06.3]} 27. Qxb7 {[%clk 0:01:54.6]}
27... Nxf4+ {[%clk 0:03:04.4]} 28. Ke1 {[%clk 0:01:44.8]} 28... Nd3+ {[%clk
0:02:45]} 0-1

[Event "Live Chess"]
[Site "Chess.com"]
[Date "2023.05.21"]
[Round "-"]
[White "domrobson"]
[Black "educatedlad"]
[Result "0-1"]
[WhiteElo "1734"]
[BlackElo "1638"]
[TimeControl "300"]
[EndTime "17:10:58 PDT"]
[Termination "educatedlad won by resignation"]

1. d4 {[%clk 0:04:58.8]} 1... d5 {[%clk 0:04:58.8]} 2. c4 {[%clk 0:04:58.3]}
2... c6 {[%clk 0:04:58.2]} 3. Nc3 {[%clk 0:04:57.7]} 3... Nf6 {[%clk 0:04:57.6]}
4. Nf3 {[%clk 0:04:57.4]} 4... g6 {[%clk 0:04:55.8]} 5. Bf4 {[%clk 0:04:53.4]}
5... dxc4 {[%clk 0:04:53.2]} 6. a4 {[%clk 0:04:51.5]} 6... Nd5 {[%clk
0:04:51.9]} 7. Bg3 {[%clk 0:04:49.9]} 7... Qa5 {[%clk 0:04:49.9]} 8. Qc2 {[%clk
0:04:46.8]} 8... Bf5 {[%clk 0:04:45.7]} 9. e3 {[%clk 0:04:44.5]} 9... Bxc2
{[%clk 0:04:43.8]} 10. Bxb8 {[%clk 0:04:33.3]} 10... Nxc3 {[%clk 0:04:40.9]} 11.
Bxa7 {[%clk 0:04:27.5]} 11... Ne4+ {[%clk 0:04:36.6]} 12. Ke2 {[%clk 0:04:25.2]}
12... Rxa7 {[%clk 0:04:33.5]} 0-1

[Event "Live Chess"]
[Site "Chess.com"]
[Date "2023.05.21"]
[Round "-"]
[White "luckywookie"]
[Black "raminguy"]
[Result "0-1"]
[WhiteElo "766"]
[BlackElo "1949"]
[TimeControl "300"]
[EndTime "17:11:03 PDT"]
[Termination "raminguy won by checkmate"]

1. e4 {[%clk 0:04:52]} 1... e6 {[%clk 0:04:59.1]} 2. Nf3 {[%clk 0:04:50]} 2...
d5 {[%clk 0:04:58.1]} 3. e5 {[%clk 0:04:48.1]} 3... Nd7 {[%clk 0:04:56.7]} 4. d4
{[%clk 0:04:47.1]} 4... c5 {[%clk 0:04:54.5]} 5. c3 {[%clk 0:04:43]} 5... Ne7
{[%clk 0:04:48.2]} 6. Bb5 {[%clk 0:04:40.8]} 6... a6 {[%clk 0:04:43.8]} 7. Bxd7+
{[%clk 0:04:35.2]} 7... Bxd7 {[%clk 0:04:42.2]} 8. b3 {[%clk 0:04:30.6]} 8...
Ng6 {[%clk 0:04:40.4]} 9. g3 {[%clk 0:04:18.8]} 9... Be7 {[%clk 0:04:33.8]} 10.
Ba3 {[%clk 0:04:14.9]} 10... cxd4 {[%clk 0:04:28.6]} 11. cxd4 {[%clk 0:04:10.6]}
11... Bxa3 {[%clk 0:04:24.3]} 12. Nxa3 {[%clk 0:04:09.5]} 12... Qa5+ {[%clk
0:04:23.8]} 13. Qd2 {[%clk 0:04:02.2]} 13... Qxa3 {[%clk 0:04:22.5]} 14. O-O
{[%clk 0:04:00.6]} 14... O-O {[%clk 0:04:19]} 15. Ng5 {[%clk 0:03:57]} 15... h6
{[%clk 0:04:16.8]} 16. Nf3 {[%clk 0:03:49.4]} 16... Rac8 {[%clk 0:04:14.8]} 17.
Rae1 {[%clk 0:03:47.5]} 17... Bb5 {[%clk 0:04:12.4]} 18. h4 {[%clk 0:03:42.6]}
18... Bxf1 {[%clk 0:04:10.1]} 19. Rxf1 {[%clk 0:03:41.7]} 19... Rc7 {[%clk
0:04:02]} 20. g4 {[%clk 0:03:40.5]} 20... Rfc8 {[%clk 0:03:59.8]} 21. g5 {[%clk
0:03:39.6]} 21... Rc2 {[%clk 0:03:58.5]} 22. Qe3 {[%clk 0:03:16.8]} 22... R8c3
{[%clk 0:03:49.7]} 23. Qxc3 {[%clk 0:03:08.2]} 23... Rxc3 {[%clk 0:03:48.1]} 24.
gxh6 {[%clk 0:03:07.4]} 24... Rxf3 {[%clk 0:03:46.3]} 25. Kg2 {[%clk 0:03:07.3]}
25... Rf4 {[%clk 0:03:41.6]} 26. h5 {[%clk 0:03:05.5]} 26... Rxd4 {[%clk
0:03:35]} 27. hxg6 {[%clk 0:03:04.2]} 27... gxh6 {[%clk 0:03:29.5]} 28. gxf7+
{[%clk 0:02:57.4]} 28... Kxf7 {[%clk 0:03:28.4]} 29. Rh1 {[%clk 0:02:54.8]}
29... Qxa2 {[%clk 0:03:25.9]} 30. Rxh6 {[%clk 0:02:52.9]} 30... Qxb3 {[%clk
0:03:18.1]} 31. Rf6+ {[%clk 0:02:51.4]} 31... Ke7 {[%clk 0:03:16.7]} 32. f3
{[%clk 0:02:48.8]} 32... Rd2+ {[%clk 0:03:14.3]} 33. Kg3 {[%clk 0:02:48.2]}
33... Qd1 {[%clk 0:03:10.4]} 34. Kg4 {[%clk 0:02:44.4]} 34... Qg1+ {[%clk
0:03:07.5]} 35. Kf4 {[%clk 0:02:43.1]} 35... Rd4# {[%clk 0:03:05.6]} 0-1

[Event "Live Chess"]
[Site "Chess.com"]
[Date "2023.05.21"]
[Round "-"]
[White "Missedidea"]
[Black "ClassyChameleon"]
[Result "0-1"]
[WhiteElo "1830"]
[BlackElo "1088"]
[TimeControl "300"]
[EndTime "17:11:13 PDT"]
[Termination "ClassyChameleon won on time"]

1. d4 {[%clk 0:04:57.6]} 1... d5 {[%clk 0:04:58.3]} 2. c4 {[%clk 0:04:55.8]}
2... e6 {[%clk 0:04:57.6]} 3. Nc3 {[%clk 0:04:54.1]} 3... c6 {[%clk 0:04:56.8]}
4. Nf3 {[%clk 0:04:52.3]} 4... Ne7 {[%clk 0:04:54.9]} 5. g3 {[%clk 0:04:43]}
5... g6 {[%clk 0:04:53.7]} 6. Bg2 {[%clk 0:04:40.4]} 6... Bg7 {[%clk 0:04:52.1]}
7. O-O {[%clk 0:04:38.9]} 7... O-O {[%clk 0:04:50.9]} 8. Bf4 {[%clk 0:04:33.2]}
8... dxc4 {[%clk 0:04:49]} 9. Ne5 {[%clk 0:04:16.6]} 9... Qb6 {[%clk 0:04:25.6]}
10. Nxc4 {[%clk 0:03:47]} 10... Qb4 {[%clk 0:04:04.8]} 11. Qd3 {[%clk
0:03:30.6]} 11... b6 {[%clk 0:03:54.6]} 12. a3 {[%clk 0:03:27.3]} 12... Qb3
{[%clk 0:03:37.1]} 13. Nd2 {[%clk 0:03:23.4]} 13... Qxb2 {[%clk 0:03:20.5]} 14.
Rfb1 {[%clk 0:03:21.4]} 14... Qxa1 {[%clk 0:02:59.6]} 15. Rxa1 {[%clk
0:03:19.5]} 15... Nd7 {[%clk 0:02:56.7]} 16. e4 {[%clk 0:03:08.5]} 16... c5
{[%clk 0:02:48.2]} 17. d5 {[%clk 0:02:45.1]} 17... exd5 {[%clk 0:02:40.8]} 18.
Bd6 {[%clk 0:02:33.9]} 18... Ne5 {[%clk 0:02:29.8]} 19. Qc2 {[%clk 0:02:19.2]}
19... d4 {[%clk 0:02:10.7]} 20. Nb5 {[%clk 0:01:52.7]} 20... d3 {[%clk
0:01:52.9]} 21. Qc1 {[%clk 0:01:39.9]} 21... Be6 {[%clk 0:01:18.3]} 22. Bxe7
{[%clk 0:01:32.5]} 22... Rfe8 {[%clk 0:01:17]} 23. Bd6 {[%clk 0:01:26.3]} 23...
Rad8 {[%clk 0:01:08.5]} 24. f4 {[%clk 0:01:07.2]} 24... Ng4 {[%clk 0:00:55.6]}
25. e5 {[%clk 0:00:49.6]} 25... Ne3 {[%clk 0:00:40.3]} 26. Nc7 {[%clk
0:00:35.5]} 26... Nxg2 {[%clk 0:00:15.6]} 27. Kxg2 {[%clk 0:00:25.6]} 27... Rc8
{[%clk 0:00:13]} 28. Nxe6 {[%clk 0:00:22.4]} 28... fxe6 {[%clk 0:00:11.5]} 29.
Qc4 {[%clk 0:00:14.5]} 29... a6 {[%clk 0:00:09.4]} 30. Qxd3 {[%clk 0:00:11.1]}
30... Rc6 {[%clk 0:00:08.5]} 31. Ne4 {[%clk 0:00:04.5]} 31... Rd8 {[%clk
0:00:07.9]} 0-1

[Event "Live Chess"]
[Site "Chess.com"]
[Date "2023.05.21"]
[Round "-"]
[White "DaveL5678"]
[Black "Jo1ts"]
[Result "0-1"]
[WhiteElo "997"]
[BlackElo "801"]
[TimeControl "300"]
[EndTime "17:11:33 PDT"]
[Termination "Jo1ts won on time"]

1. e4 {[%clk 0:04:54.1]} 1... d5 {[%clk 0:04:58.8]} 2. exd5 {[%clk 0:04:51]}
2... Qxd5 {[%clk 0:04:58.7]} 3. Nc3 {[%clk 0:04:47.3]} 3... Qd8 {[%clk
0:04:57.9]} 4. Nf3 {[%clk 0:04:44.4]} 4... Nf6 {[%clk 0:04:57.1]} 5. d3 {[%clk
0:04:41.5]} 5... Nc6 {[%clk 0:04:54.1]} 6. Bg5 {[%clk 0:04:39.4]} 6... e5 {[%clk
0:04:50.7]} 7. Qe2 {[%clk 0:04:31.4]} 7... Bd6 {[%clk 0:04:48.1]} 8. O-O-O
{[%clk 0:04:27.9]} 8... h6 {[%clk 0:04:46.5]} 9. Bh4 {[%clk 0:04:23.3]} 9... g5
{[%clk 0:04:43.7]} 10. Bg3 {[%clk 0:04:21.6]} 10... Bg4 {[%clk 0:04:25.2]} 11.
h3 {[%clk 0:04:13.4]} 11... Bh5 {[%clk 0:04:22]} 12. Ne4 {[%clk 0:03:50.7]}
12... Qe7 {[%clk 0:04:02.4]} 13. Nxf6+ {[%clk 0:03:33.6]} 13... Qxf6 {[%clk
0:03:58.8]} 14. Qe3 {[%clk 0:03:19.5]} 14... O-O-O {[%clk 0:03:51.6]} 15. Be2
{[%clk 0:03:11.4]} 15... Qe6 {[%clk 0:03:43]} 16. d4 {[%clk 0:02:52.9]} 16...
Qxa2 {[%clk 0:03:06.2]} 17. Qb3 {[%clk 0:02:21.7]} 17... Qxb3 {[%clk 0:02:50.1]}
18. cxb3 {[%clk 0:02:21.6]} 18... Bb4 {[%clk 0:02:38.4]} 19. dxe5 {[%clk
0:02:11.8]} 19... Bxf3 {[%clk 0:02:26.9]} 20. Bxf3 {[%clk 0:02:09.3]} 20...
Rxd1+ {[%clk 0:02:11.7]} 21. Rxd1 {[%clk 0:02:05.6]} 21... Na5 {[%clk
0:01:50.1]} 22. Bg4+ {[%clk 0:01:54.7]} 22... Kb8 {[%clk 0:01:46.1]} 23. Kc2
{[%clk 0:01:34.2]} 23... h5 {[%clk 0:01:37.3]} 24. Bf5 {[%clk 0:01:19.2]} 24...
h4 {[%clk 0:01:34.8]} 25. e6 {[%clk 0:01:15.8]} 25... fxe6 {[%clk 0:01:29.6]}
26. Bxe6 {[%clk 0:01:14.7]} 26... b6 {[%clk 0:01:28.5]} 27. Be5 {[%clk
0:01:08.8]} 27... Re8 {[%clk 0:01:22.3]} 28. Bf6 {[%clk 0:00:33.3]} 28... Rxe6
{[%clk 0:01:19.3]} 29. Bxg5 {[%clk 0:00:32.3]} 29... Re2+ {[%clk 0:01:18.1]} 30.
Kd3 {[%clk 0:00:28.7]} 30... Rxf2 {[%clk 0:01:12.5]} 31. Bxh4 {[%clk 0:00:26]}
31... Rxg2 {[%clk 0:01:10.9]} 32. Rf1 {[%clk 0:00:16.8]} 32... Rxb2 {[%clk
0:01:08.2]} 33. Rf8+ {[%clk 0:00:14.3]} 33... Kb7 {[%clk 0:01:07.7]} 34. Bd8
{[%clk 0:00:09.6]} 34... Rxb3+ {[%clk 0:01:05]} 35. Kc2 {[%clk 0:00:08]} 35...
Rxh3 {[%clk 0:01:02]} 36. Rf7 {[%clk 0:00:06]} 36... Bd6 {[%clk 0:00:57.7]} 0-1